[Event "44th Chess Olympiad Open 2022"]
[Site "Chennai"]
[Date "2022.08.02"]
[Round "5.22"]
[White "Koykka, Pekka"]
[Black "Kazakouski, Valery"]
[Result "1/2-1/2"]
[WhiteElo "2361"]
[BlackElo "2528"]
[Annotator "RC"]
[PlyCount "51"]
[EventDate "2022.??.??"]
[TimeControl "60"]

1. e4 {[%emt 0:00:04]} c5 {[%emt 0:00:19]} 2. Nf3 {[%emt 0:00:14]} d6 {[%emt 0:
00:00]} 3. d4 {[%emt 0:00:12]} cxd4 {[%emt 0:00:09]} 4. Nxd4 {[%emt 0:00:09]}
Nf6 {[%emt 0:00:10]} 5. Nc3 {[%emt 0:00:07]} Nc6 {[%emt 0:00:12]} 6. Bc4 {
[%emt 0:00:30]} Qb6 {[%emt 0:00:33]} 7. Nb3 {[%emt 0:00:20]} e6 {[%emt 0:00:20]
} 8. Bf4 {[%emt 0:02:51]} Ne5 {[%emt 0:04:38]} 9. Be2 {[%emt 0:01:44]} Be7 {
[%emt 0:08:51]} 10. g4 {[%emt 0:11:51]} h5 {[%emt 0:10:22]} 11. gxh5 {[%emt 0:
00:00]} Bd7 {[%emt 0:03:28]} 12. Rg1 {[%emt 0:09:19]} Rc8 {[%emt 0:06:03]} 13.
Be3 {[%emt 0:14:24]} Qc7 {[%emt 0:13:53]} 14. Rxg7 {[%emt 0:05:45]} Nc4 {
[%emt 0:06:56]} 15. Bxc4 {[%emt 0:00:14]} Qxc4 {[%emt 0:01:31]} 16. h6 {
[%emt 0:19:38]} Bc6 {[%emt 0:12:58]} 17. Nd2 Qb4 {[%emt 0:04:30]} 18. Rb1 {
[%emt 0:02:36]} Qa5 {[%emt 0:02:22]} 19. Nc4 {[%emt 0:02:53]} Qb4 {[%emt 0:00:
00]} 20. Nd2 {[%emt 0:02:09]} Qa5 {[%emt 0:05:27]} 21. Rg5 {[%emt 0:04:00]} Qd8
{[%emt 0:00:12]} 22. Rg7 Qa5 {[%emt 0:03:07]} 23. Nc4 {[%emt 0:00:59]} Qb4 {
[%emt 0:00:49]} 24. Nd2 {[%emt 0:00:14]} Qa5 {[%emt 0:01:47]} 25. Nc4 {[%emt 0:
00:00]} Qb4 {[%emt 0:00:00]} 26. Nd2 {[%emt 0:02:30]} 1/2-1/2

[Event "44th Chess Olympiad Open 2022"]
[Site "Chennai"]
[Date "2022.08.02"]
[Round "5.23"]
[White "Georgiadis, Nico"]
[Black "Tin, Jingyao"]
[Result "1/2-1/2"]
[WhiteElo "2578"]
[BlackElo "2552"]
[Annotator "TA"]
[PlyCount "101"]
[EventDate "2022.??.??"]
[TimeControl "60"]

{[%evp 21,101,7,16,14,10,1,0,6,7,0,0,0,0,0,0,0,0,0,0,0,0,0,0,0,36,33,29,8,8,7,
8,20,52,52,52,26,35,35,35,35,34,33,33,28,33,33,40,40,40,41,55,55,79,79,79,79,
74,0,75,0,64,38,106,92,95,95,95,94,92,93,95,95,95,95,88,88,106,106,106,106,106,
80]} 1. e4 {[%emt 0:00:03]} e5 {[%emt 0:00:15]} 2. Nf3 {[%emt 0:00:06]} Nc6 {
[%emt 0:00:13]} 3. Bb5 {[%emt 0:00:06]} a6 {[%emt 0:00:12]} 4. Ba4 {[%emt 0:00:
00]} Nf6 {[%emt 0:00:12][%cal Yg8f6,Yf6e4,Ye4c5]} 5. O-O {[%emt 0:00:00]} Nxe4
{[%emt 0:00:15]} 6. d4 {[%emt 0:01:02]} b5 {[%emt 0:00:20]} 7. Bb3 {[%emt 0:00:
05]} d5 {[%emt 0:00:13]} 8. dxe5 {[%emt 0:00:06]} Be6 {[%emt 0:00:00]} 9. Nbd2
{[%emt 0:08:46]} Be7 {[%emt 0:00:43]} 10. Qe2 {[%emt 0:03:23]} Nc5 {[%emt 0:04:
03]} 11. Rd1 {[%emt 0:00:23]} O-O {[%emt 0:15:16]} 12. c3 {[%emt 0:00:00] C81:
Open Ruy Lopez: Keres Variation (9 Qe2).} f6 {[%emt 0:06:00]} 13. Nd4 {[%emt 0:
11:25]} Nxd4 {[%emt 0:16:09]} ({Don't take} 13... Nxe5 14. Nxe6 Nxe6 15. Nf1
$16) 14. cxd4 {[%emt 0:00:07] The position is equal.} Nxb3 {[%emt 0:00:29]} 15.
Nxb3 {[%emt 0:00:08]} fxe5 {[%emt 0:00:29]} 16. Qxe5 {[%emt 0:00:24]} Bf7 {
[%emt 0:06:46] [#]} 17. Re1 $146 {[%emt 0:17:26]} ({Predecessor:} 17. Qg3 Bh5
18. f3 Bd6 19. Qg5 Qxg5 20. Bxg5 Bg6 21. Rac1 Rfe8 22. Kf2 Re6 23. Nc5 Bxc5 24.
Rxc5 {0-1 (29) Vilarino,J-Figueredo,A Spain 1993}) 17... Bd6 {[%emt 0:01:55]}
18. Qg5 {[%emt 0:00:56]} a5 {[%emt 0:03:20][%cal Ya6a5,Ya5a4]} 19. Qxd8 {
[%emt 0:04:07]} Rfxd8 {[%emt 0:02:07]} 20. Bd2 {[%emt 0:08:37]} a4 {[%emt 0:19:
43]} 21. Na5 {[%emt 0:00:17]} Rdb8 {[%emt 0:00:00][%cal Yd8b8,Yb8b6,Yb6c6]} 22.
Nc6 {[%emt 0:03:47]} Rb6 {[%emt 0:00:00]} 23. Rac1 {[%emt 0:18:28]} Re8 {
[%emt 0:02:31]} 24. a3 {[%emt 0:03:15]} Rxe1+ {[%emt 0:01:48]} 25. Bxe1 {
[%emt 0:00:05]} Be8 {[%emt 0:00:43]} 26. Nb4 {[%emt 0:02:54]} ({Don't play} 26.
Ne5 b4 27. axb4 Bxb4 28. Bxb4 Rxb4 $17) 26... Bxb4 {[%emt 0:01:06]} 27. Bxb4
$11 {[%emt 0:00:05] Endgame KRB-KRB} Rc6 {[%emt 0:02:01]} 28. Re1 {[%emt 0:03:
11]} Bd7 {[%emt 0:05:18]} 29. f3 {[%emt 0:01:16]} Re6 {[%emt 0:00:49]} 30. Rc1
{[%emt 0:00:06]} c6 {[%emt 0:00:00]} 31. Kf2 {[%emt 0:00:08]} Be8 {[%emt 0:00:
26]} 32. Bd2 {[%emt 0:00:26]} Bg6 {[%emt 0:01:18]} 33. Rc3 {[%emt 0:01:38]} Bb1
{[%emt 0:01:03]} 34. Bf4 {[%emt 0:00:17]} Ba2 {[%emt 0:00:47]} 35. Be5 {
[%emt 0:00:09]} Bc4 {[%emt 0:00:00][%cal Yc6c5]} 36. f4 {[%emt 0:00:22]} g6 {
[%emt 0:01:55]} 37. g4 {[%emt 0:00:00]} Re7 {[%emt 0:00:54]} 38. Re3 {[%emt 0:
01:33]} Ba2 {[%emt 0:01:41]} 39. Rc3 {[%emt 0:01:56]} Bc4 {[%emt 0:00:19]} 40.
Re3 {[%emt 0:00:08]} Ba2 $1 {[%emt 0:00:03]} 41. h4 {[%emt 0:21:39]} Kf7 {
[%emt 0:02:16]} ({Better is} 41... Rb7 $14) 42. Rh3 {[%emt 0:02:47] White is
better.} h5 {[%emt 0:11:52]} 43. gxh5 {[%emt 0:00:14]} gxh5 {[%emt 0:00:03]}
44. Rg3 {[%emt 0:00:15]} Bb1 {[%emt 0:00:00]} 45. Rg5 {[%emt 0:04:21]} Ke6 {
[%emt 0:00:33] Against f5+} 46. Rxh5 {[%emt 0:01:27]} Rh7 {[%emt 0:03:55]
Inhibits Rh6+.} 47. Rxh7 {[%emt 0:00:05]} Bxh7 {[%emt 0:00:05]} 48. h5 {
[%emt 0:01:57][%cal Yh4h5,Yh5h6] Prevents Bg6.} Bc2 {[%emt 0:00:58]} 49. Ke3 {
[%emt 0:01:08]} Bf5 {[%emt 0:00:00]} 50. h6 {[%emt 0:02:42]} Bh7 {[%emt 0:00:
14]} 51. Bg7 {[%emt 0:00:16] Weighted Error Value: White=0.06 (flawless) /
Black=0.05 (flawless)} 1/2-1/2

[Event "44th Chess Olympiad Open 2022"]
[Site "Chennai"]
[Date "2022.08.02"]
[Round "5.23"]
[White "Kurmann, Oliver"]
[Black "Siddharth, Jagadeesh"]
[Result "1-0"]
[WhiteElo "2463"]
[BlackElo "2426"]
[Annotator "RC"]
[PlyCount "116"]
[EventDate "2022.??.??"]
[TimeControl "60"]

1. e4 {[%emt 0:00:03]} e5 {[%emt 0:00:33]} 2. Nf3 {[%emt 0:00:08]} Nf6 {
[%emt 0:00:28]} 3. Nxe5 {[%emt 0:00:10]} d6 {[%emt 0:00:10]} 4. Nf3 {[%emt 0:
00:00]} Nxe4 {[%emt 0:00:10]} 5. c4 {[%emt 0:00:17]} Nc6 {[%emt 0:00:14]} 6. d3
{[%emt 0:00:34]} Nf6 {[%emt 0:00:09]} 7. d4 {[%emt 0:00:07]} Be7 {[%emt 0:00:
00]} 8. d5 {[%emt 0:00:58]} Ne5 {[%emt 0:00:11]} 9. Nxe5 {[%emt 0:00:13]} dxe5
{[%emt 0:00:08]} 10. Nc3 {[%emt 0:00:10]} c6 {[%emt 0:02:16]} 11. Bd3 {[%emt 0:
00:00]} cxd5 {[%emt 0:03:25]} 12. cxd5 {[%emt 0:00:01]} O-O {[%emt 0:01:17]}
13. O-O {[%emt 0:00:08]} h6 {[%emt 0:01:43]} 14. h3 {[%emt 0:00:45]} Bb4 {
[%emt 0:05:26]} 15. Qb3 {[%emt 0:05:17]} a5 {[%emt 0:12:07]} 16. Rd1 {[%emt 0:
00:00]} Nd7 {[%emt 0:05:32]} 17. Qc2 {[%emt 0:09:23]} Nc5 {[%emt 0:00:20]} 18.
Bc4 {[%emt 0:04:23]} Qf6 {[%emt 0:05:21]} 19. Be3 {[%emt 0:16:44]} Bf5 {
[%emt 0:00:46]} 20. Qe2 {[%emt 0:00:02]} Rac8 {[%emt 0:00:52]} 21. Rac1 {
[%emt 0:09:50]} e4 {[%emt 0:10:51]} 22. d6 {[%emt 0:27:11]} Bxc3 {[%emt 0:00:
00]} 23. Rxc3 {[%emt 0:00:01]} Nd3 {[%emt 0:01:01]} 24. Bxd3 {[%emt 0:01:31]}
exd3 {[%emt 0:00:27]} 25. Qf3 {[%emt 0:00:04]} Qg6 {[%emt 0:08:18]} 26. Rxc8 {
[%emt 0:04:03]} Bxc8 {[%emt 0:02:50]} 27. Qg3 {[%emt 0:02:08]} Bf5 {[%emt 0:00:
00]} 28. Qxg6 {[%emt 0:00:05]} fxg6 {[%emt 0:00:11]} 29. Bb6 {[%emt 0:03:13]}
Rf7 {[%emt 0:00:15]} 30. f3 {[%emt 0:02:58]} Rd7 {[%emt 0:02:19]} 31. Bc7 {
[%emt 0:00:01]} g5 {[%emt 0:00:01]} 32. Kf2 {[%emt 0:00:30]} a4 {[%emt 0:00:40]
} 33. Ke3 {[%emt 0:00:30]} Be6 {[%emt 0:03:17]} 34. Rxd3 {[%emt 0:01:19]} Bxa2
{[%emt 0:00:07]} 35. Kd4 {[%emt 0:00:54]} b6 {[%emt 0:09:21]} 36. Re3 {[%emt 0:
00:00]} Kf8 {[%emt 0:01:44]} 37. Re5 {[%emt 0:00:30]} Bb3 {[%emt 0:01:31]} 38.
Kc3 {[%emt 0:02:22]} Kf7 {[%emt 0:01:39]} 39. Kb4 {[%emt 0:00:08]} Kf6 {
[%emt 0:04:02]} 40. Re8 {[%emt 0:00:16]} Kf7 {[%emt 0:01:34]} 41. Re1 {[%emt 0:
00:00]} Kf8 {[%emt 0:02:34]} 42. Kb5 {[%emt 0:00:00]} Bf7 {[%emt 0:00:16]} 43.
Kxa4 {[%emt 0:00:00]} Be8 {[%emt 0:00:02]} 44. Kb4 {[%emt 0:00:00]} b5 {
[%emt 0:00:08]} 45. Rxe8+ {[%emt 0:00:00]} Kxe8 {[%emt 0:01:03]} 46. Kxb5 {
[%emt 0:00:00]} Kf7 {[%emt 0:13:31]} 47. Kc6 {[%emt 0:00:00]} Ke6 {[%emt 0:00:
00]} 48. b4 {[%emt 0:00:00]} g4 {[%emt 0:00:26]} 49. hxg4 {[%emt 0:00:00]} Rf7
{[%emt 0:00:10]} 50. b5 {[%emt 0:00:00]} Rf4 {[%emt 0:00:08]} 51. b6 {[%emt 0:
00:00]} Rc4+ {[%emt 0:00:06]} 52. Kb5 {[%emt 0:00:00]} Rc2 {[%emt 0:00:08]} 53.
b7 {[%emt 0:00:00]} Rb2+ {[%emt 0:00:05]} 54. Ka6 {[%emt 0:00:00]} Ra2+ {
[%emt 0:00:15]} 55. Ba5 {[%emt 0:00:00]} Rb2 {[%emt 0:00:06]} 56. Ka7 {[%emt 0:
00:00]} Kxd6 {[%emt 0:00:38]} 57. b8=Q+ {[%emt 0:00:00]} Rxb8 {[%emt 0:00:04]}
58. Kxb8 {[%emt 0:00:00]} g6 {[%emt 0:00:08]} 1-0

[Event "44th Chess Olympiad Open 2022"]
[Site "Chennai"]
[Date "2022.08.02"]
[Round "5.23"]
[White "Goh, Wei Ming Kevin"]
[Black "Bogner, Sebastian"]
[Result "1/2-1/2"]
[WhiteElo "2453"]
[BlackElo "2545"]
[Annotator "RC"]
[PlyCount "100"]
[EventDate "2022.??.??"]
[TimeControl "60"]

1. e4 {[%emt 0:00:08]} c5 {[%emt 0:00:08]} 2. Nf3 {[%emt 0:00:19]} e6 {[%emt 0:
00:00]} 3. c3 {[%emt 0:01:56]} d5 {[%emt 0:00:19]} 4. exd5 {[%emt 0:00:43]}
Qxd5 {[%emt 0:00:05]} 5. Na3 {[%emt 0:02:04]} Nf6 {[%emt 0:00:46]} 6. d4 {
[%emt 0:03:34]} Nc6 {[%emt 0:07:44]} 7. Nb5 {[%emt 0:06:48]} Qd8 {[%emt 0:00:
00]} 8. dxc5 {[%emt 0:05:17]} Bxc5 {[%emt 0:00:15]} 9. Qxd8+ {[%emt 0:02:47]}
Kxd8 {[%emt 0:00:06]} 10. b4 {[%emt 0:06:43]} Be7 {[%emt 0:00:02]} 11. Bb2 {
[%emt 0:06:15]} Bd7 {[%emt 0:03:27]} 12. Rd1 {[%emt 0:05:49]} Ne8 {[%emt 0:00:
00]} 13. Be2 {[%emt 0:15:12]} a6 {[%emt 0:02:48]} 14. Nbd4 {[%emt 0:01:20]}
Nxd4 {[%emt 0:00:23]} 15. Rxd4 {[%emt 0:07:58]} f6 {[%emt 0:07:30]} 16. O-O {
[%emt 0:01:21]} e5 {[%emt 0:00:09]} 17. Rd2 {[%emt 0:01:18]} Kc7 {[%emt 0:00:
00]} 18. a3 {[%emt 0:02:20]} a5 {[%emt 0:00:34]} 19. Ne1 {[%emt 0:09:44]} Nd6 {
[%emt 0:04:05]} 20. Nc2 {[%emt 0:02:31]} Ne4 {[%emt 0:03:59]} 21. Rd5 {[%emt 0:
00:00]} Be6 {[%emt 0:01:04]} 22. Ne3 {[%emt 0:02:15]} Kb8 {[%emt 0:07:07]} 23.
f3 {[%emt 0:03:19]} Nd6 {[%emt 0:02:11]} 24. Rd2 {[%emt 0:02:16]} Rc8 {[%emt 0:
00:00]} 25. Rfd1 {[%emt 0:00:18]} Nf5 {[%emt 0:04:03]} 26. Nxf5 {[%emt 0:03:10]
} Bxf5 {[%emt 0:00:03]} 27. Kf2 {[%emt 0:01:19]} Be6 {[%emt 0:03:04]} 28. Bb5 {
[%emt 0:00:48]} Rc7 {[%emt 0:00:47]} 29. h4 {[%emt 0:00:59]} Ka7 {[%emt 0:00:
00]} 30. Re1 {[%emt 0:00:09]} Rd8 {[%emt 0:01:47]} 31. Rxd8 {[%emt 0:00:26]}
Bxd8 {[%emt 0:00:02]} 32. f4 {[%emt 0:00:42]} Bc4 {[%emt 0:01:59]} 33. Bxc4 {
[%emt 0:00:10]} Rxc4 {[%emt 0:00:05]} 34. fxe5 {[%emt 0:00:11]} fxe5 {[%emt 0:
00:00]} 35. Rxe5 {[%emt 0:00:08]} Rxh4 {[%emt 0:03:26]} 36. Bc1 {[%emt 0:00:50]
} Bb6+ {[%emt 0:03:09]} 37. Be3 {[%emt 0:00:31]} Bxe3+ {[%emt 0:00:06]} 38.
Kxe3 {[%emt 0:00:42]} axb4 {[%emt 0:00:19]} 39. axb4 {[%emt 0:00:16]} Rc4 {
[%emt 0:02:34]} 40. Kd3 {[%emt 0:00:36]} Rg4 {[%emt 0:00:07]} 41. Re2 {[%emt 0:
00:00]} h5 {[%emt 0:32:52]} 42. c4 {[%emt 0:00:00]} g5 {[%emt 0:00:00]} 43. Kc3
{[%emt 0:00:00]} Kb6 {[%emt 0:00:00]} 44. Rf2 {[%emt 0:00:00]} h4 {[%emt 0:00:
00]} 45. Kd3 {[%emt 0:00:00]} Kc6 {[%emt 0:01:29]} 46. Rf6+ {[%emt 0:00:00]}
Kd7 {[%emt 0:00:00]} 47. Rf7+ {[%emt 0:00:00]} Kc8 {[%emt 0:00:00]} 48. Rf8+ {
[%emt 0:00:00]} Kd7 {[%emt 0:00:00]} 49. Rf7+ {[%emt 0:00:00]} Kc8 {[%emt 0:00:
00]} 50. Rf8+ {[%emt 0:00:00]} Kd7 {[%emt 0:00:00]} 1/2-1/2

[Event "44th Chess Olympiad Open 2022"]
[Site "Chennai"]
[Date "2022.08.02"]
[Round "5.23"]
[White "Wong, Zhenyong Jayden"]
[Black "Baenziger, Fabian"]
[Result "1/2-1/2"]
[WhiteElo "2163"]
[BlackElo "2451"]
[Annotator "RC"]
[PlyCount "77"]
[EventDate "2022.??.??"]
[TimeControl "60"]

1. d4 {[%emt 0:00:03]} d5 {[%emt 0:00:12]} 2. c4 {[%emt 0:00:08]} c6 {[%emt 0:
00:00]} 3. Nf3 {[%emt 0:00:12]} Nf6 {[%emt 0:00:08]} 4. Nc3 {[%emt 0:00:11]} e6
{[%emt 0:00:37]} 5. g3 {[%emt 0:00:31]} Be7 {[%emt 0:00:36]} 6. Bg2 {[%emt 0:
00:00]} O-O {[%emt 0:00:07]} 7. O-O {[%emt 0:00:14]} a5 {[%emt 0:00:18]} 8. Nd2
{[%emt 0:02:04]} b5 {[%emt 0:01:48]} 9. cxb5 {[%emt 0:01:14]} cxb5 {[%emt 0:00:
00]} 10. Nxb5 {[%emt 0:00:35]} Qb6 {[%emt 0:00:40]} 11. a4 {[%emt 0:02:12]} Nc6
{[%emt 0:01:22]} 12. Nb1 {[%emt 0:00:46]} Ba6 {[%emt 0:08:13]} 13. N1c3 {
[%emt 0:00:06]} Rac8 {[%emt 0:00:40]} 14. Bg5 {[%emt 0:18:02]} h6 {[%emt 0:00:
00]} 15. Bxf6 {[%emt 0:01:41]} Bxf6 {[%emt 0:00:05]} 16. e3 {[%emt 0:00:10]}
Be7 {[%emt 0:02:06]} 17. Qd3 {[%emt 0:13:49]} Na7 {[%emt 0:21:37]} 18. Rfc1 {
[%emt 0:04:35]} Rb8 {[%emt 0:00:06]} 19. Bf1 {[%emt 0:12:22]} Bb4 {[%emt 0:00:
00]} 20. Qd1 {[%emt 0:01:04]} Bxc3 {[%emt 0:04:19]} 21. Rxc3 {[%emt 0:10:58]}
Nxb5 {[%emt 0:00:14]} 22. axb5 {[%emt 0:00:11]} Bxb5 {[%emt 0:00:15]} 23. Rb3 {
[%emt 0:02:07]} Qc6 {[%emt 0:02:18]} 24. Bxb5 {[%emt 0:03:02]} Rxb5 {[%emt 0:
00:00]} 25. Rxb5 {[%emt 0:00:33]} Qxb5 {[%emt 0:00:06]} 26. Qa4 {[%emt 0:00:11]
} Qxb2 {[%emt 0:00:19]} 27. Qxa5 {[%emt 0:00:07]} Rc8 {[%emt 0:00:08]} 28. Rf1
{[%emt 0:03:02]} Qe2 {[%emt 0:03:16]} 29. Qe1 {[%emt 0:01:17]} Qf3 {[%emt 0:00:
00]} 30. Qd1 {[%emt 0:00:30]} Qe4 {[%emt 0:00:05]} 31. Qb1 {[%emt 0:00:28]} Qf3
{[%emt 0:00:31]} 32. Qd1 {[%emt 0:00:25]} Qf5 {[%emt 0:00:06]} 33. Kg2 {
[%emt 0:00:42]} h5 {[%emt 0:00:32]} 34. h4 {[%emt 0:01:09]} Kh7 {[%emt 0:00:56]
} 35. Qf3 {[%emt 0:00:44]} Kg6 {[%emt 0:00:24]} 36. Qxf5+ {[%emt 0:02:20]} Kxf5
{[%emt 0:00:05]} 37. Kf3 {[%emt 0:00:19]} g6 {[%emt 0:02:45]} 38. Ra1 {[%emt 0:
00:00]} Rc2 {[%emt 0:00:03]} 39. Ra7 {[%emt 0:01:11]} 1/2-1/2

[Event "44th Chess Olympiad Open 2022"]
[Site "Chennai"]
[Date "2022.08.02"]
[Round "5.24"]
[White "Vera Siguenas, Deivy"]
[Black "Ribera Veganzones, Josep Maria"]
[Result "1-0"]
[WhiteElo "2503"]
[BlackElo "2228"]
[Annotator "RC"]
[PlyCount "85"]
[EventDate "2022.??.??"]
[TimeControl "60"]

1. d4 {[%emt 0:00:03]} Nf6 {[%emt 0:00:35]} 2. c4 {[%emt 0:00:04]} g6 {[%emt 0:
00:00]} 3. Nc3 {[%emt 0:00:04]} Bg7 {[%emt 0:00:30]} 4. e4 {[%emt 0:00:04]} d6
{[%emt 0:00:42]} 5. h3 {[%emt 0:00:14]} O-O {[%emt 0:00:38]} 6. Be3 {[%emt 0:
00:00]} Nc6 {[%emt 0:00:39]} 7. d5 {[%emt 0:00:08]} Ne5 {[%emt 0:00:26]} 8. f4
{[%emt 0:00:03]} Ned7 {[%emt 0:00:27]} 9. g4 {[%emt 0:00:04]} c6 {[%emt 0:00:
00]} 10. Nf3 {[%emt 0:00:28]} cxd5 {[%emt 0:01:26]} 11. cxd5 {[%emt 0:00:06]}
b6 {[%emt 0:03:28]} 12. Nd4 {[%emt 0:02:53]} Bb7 {[%emt 0:03:17]} 13. Bg2 {
[%emt 0:01:46]} Rc8 {[%emt 0:03:26]} 14. O-O {[%emt 0:04:54]} Qe8 {[%emt 0:00:
00]} 15. Re1 {[%emt 0:07:06]} Nc5 {[%emt 0:17:25]} 16. b4 {[%emt 0:04:52]} e5 {
[%emt 0:05:55]} 17. fxe5 {[%emt 0:01:29]} dxe5 {[%emt 0:00:49]} 18. Nc6 {
[%emt 0:02:02]} Ne6 {[%emt 0:06:24]} 19. b5 {[%emt 0:01:41]} Nf4 {[%emt 0:00:
00]} 20. Qd2 {[%emt 0:09:11]} Nd7 {[%emt 0:04:35]} 21. Rac1 {[%emt 0:09:02]}
Bh6 {[%emt 0:01:57]} 22. Ne2 {[%emt 0:05:47]} Nxe2+ {[%emt 0:09:40]} 23. Rxe2 {
[%emt 0:00:21]} Bxe3+ {[%emt 0:00:13]} 24. Qxe3 {[%emt 0:00:06]} a6 {[%emt 0:
00:00]} 25. a4 {[%emt 0:00:28]} axb5 {[%emt 0:00:12]} 26. axb5 {[%emt 0:00:05]}
Ra8 {[%emt 0:00:14]} 27. g5 {[%emt 0:05:51]} Ra4 {[%emt 0:00:57]} 28. Rf2 {
[%emt 0:01:04]} Bc8 {[%emt 0:04:14]} 29. Qb3 {[%emt 0:05:09]} Nc5 {[%emt 0:00:
00]} 30. Rxc5 {[%emt 0:07:55]} Ra1+ {[%emt 0:00:10]} 31. Kh2 {[%emt 0:00:07]}
bxc5 {[%emt 0:00:06]} 32. Qc3 {[%emt 0:00:08]} Rb1 {[%emt 0:02:34]} 33. Qxc5 {
[%emt 0:00:30]} Kg7 {[%emt 0:05:22]} 34. Qd6 {[%emt 0:01:59]} h6 {[%emt 0:00:
00]} 35. Qf6+ {[%emt 0:00:38]} Kh7 {[%emt 0:00:15]} 36. gxh6 {[%emt 0:00:13]}
Rg8 {[%emt 0:03:19]} 37. Nxe5 {[%emt 0:03:39]} g5 {[%emt 0:05:01]} 38. Nxf7 {
[%emt 0:00:38]} Rg6 {[%emt 0:00:55]} 39. Nxg5+ {[%emt 0:04:05]} Kxh6 {[%emt 0:
00:00]} 40. Nf7+ {[%emt 0:00:23]} Kh7 {[%emt 0:00:18]} 41. Qh4+ {[%emt 0:30:16]
} Kg7 {[%emt 0:30:17]} 42. Qf4 {[%emt 0:01:03]} Rxb5 {[%emt 0:01:35]} 43. Nd6 {
[%emt 0:01:10]} 1-0

[Event "44th Chess Olympiad Open 2022"]
[Site "Chennai"]
[Date "2022.08.02"]
[Round "5.24"]
[White "Escalante Ramirez, Brian Sebasti"]
[Black "Fluvia Poyatos, Jordi"]
[Result "1/2-1/2"]
[WhiteElo "2496"]
[BlackElo "2451"]
[Annotator "RC"]
[PlyCount "41"]
[EventDate "2022.??.??"]
[TimeControl "60"]

1. e4 {[%emt 0:01:01]} c6 {[%emt 0:00:27]} 2. Nf3 {[%emt 0:00:41]} d5 {[%emt 0:
00:00]} 3. exd5 {[%emt 0:00:02]} cxd5 {[%emt 0:00:21]} 4. Ne5 {[%emt 0:00:02]}
Nc6 {[%emt 0:01:12]} 5. d4 {[%emt 0:00:02]} e6 {[%emt 0:04:57]} 6. c3 {[%emt 0:
00:00]} Nxe5 {[%emt 0:05:10]} 7. dxe5 {[%emt 0:00:04]} Ne7 {[%emt 0:01:05]} 8.
Nd2 {[%emt 0:00:22]} Nc6 {[%emt 0:07:35]} 9. Nf3 {[%emt 0:00:03]} Qc7 {[%emt 0:
00:00]} 10. Bf4 {[%emt 0:02:19]} f5 {[%emt 0:05:07]} 11. h4 {[%emt 0:02:09]}
Bd7 {[%emt 0:07:42]} 12. Bd3 {[%emt 0:01:23]} Be7 {[%emt 0:02:45]} 13. Qe2 {
[%emt 0:16:49]} O-O-O {[%emt 0:02:46]} 14. O-O {[%emt 0:15:17]} h6 {[%emt 0:00:
00]} 15. h5 {[%emt 0:05:11]} g5 {[%emt 0:01:50]} 16. hxg6 {[%emt 0:01:31]} Rhg8
{[%emt 0:06:11]} 17. Qd2 {[%emt 0:05:05]} Qb6 {[%emt 0:10:30]} 18. Be3 {
[%emt 0:01:07]} Qc7 {[%emt 0:01:08]} 19. Bf4 {[%emt 0:00:01]} Qb6 {[%emt 0:00:
00]} 20. Be3 {[%emt 0:14:34]} Qc7 {[%emt 0:00:23]} 21. Bf4 {[%emt 0:00:59]}
1/2-1/2

[Event "44th Chess Olympiad Open 2022"]
[Site "Chennai"]
[Date "2022.08.02"]
[Round "5.24"]
[White "Henderson de La Fuente, Lance"]
[Black "Cordova, Emilio"]
[Result "1/2-1/2"]
[WhiteElo "2490"]
[BlackElo "2549"]
[Annotator "RC"]
[PlyCount "60"]
[EventDate "2022.??.??"]
[TimeControl "60"]

1. d4 {[%emt 0:00:12]} Nf6 {[%emt 0:00:56]} 2. Nf3 {[%emt 0:00:25]} e6 {
[%emt 0:00:20]} 3. c4 {[%emt 0:00:28]} b6 {[%emt 0:01:32]} 4. g3 {[%emt 0:00:
00]} Bb7 {[%emt 0:00:49]} 5. Bg2 {[%emt 0:00:30]} Bb4+ {[%emt 0:00:57]} 6. Bd2
{[%emt 0:00:25]} Bxd2+ {[%emt 0:01:47]} 7. Qxd2 {[%emt 0:02:10]} O-O {[%emt 0:
00:00]} 8. Nc3 {[%emt 0:00:28]} Ne4 {[%emt 0:00:24]} 9. Qc2 {[%emt 0:05:11]}
Nxc3 {[%emt 0:01:34]} 10. Ng5 {[%emt 0:12:43]} Ne4 {[%emt 0:00:06]} 11. Bxe4 {
[%emt 0:07:13]} Bxe4 {[%emt 0:00:40]} 12. Nxe4 {[%emt 0:22:28]} d5 {[%emt 0:00:
00]} 13. Nd2 {[%emt 0:00:00]} c6 {[%emt 0:11:24]} 14. O-O {[%emt 0:00:00]} Nd7
{[%emt 0:01:28]} 15. cxd5 {[%emt 0:00:00]} cxd5 {[%emt 0:00:05]} 16. Rac1 {
[%emt 0:00:00]} Rc8 {[%emt 0:00:40]} 17. Qa4 {[%emt 0:00:00]} Rc7 {[%emt 0:00:
00]} 18. Nb3 {[%emt 0:00:00]} Nb8 {[%emt 0:01:30]} 19. Rxc7 {[%emt 0:00:00]}
Qxc7 {[%emt 0:00:05]} 20. Rc1 {[%emt 0:00:00]} Qb7 {[%emt 0:00:24]} 21. Nd2 {
[%emt 0:00:00]} f6 {[%emt 0:05:57]} 22. Kg2 {[%emt 0:03:17]} Qa6 {[%emt 0:00:
00]} 23. Qxa6 {[%emt 0:00:00]} Nxa6 {[%emt 0:00:05]} 24. Rc3 {[%emt 0:00:00]}
Rf7 {[%emt 0:01:14]} 25. Rc8+ {[%emt 0:00:00]} Rf8 {[%emt 0:00:04]} 26. Rc3 {
[%emt 0:00:00]} Rf7 {[%emt 0:01:58]} 27. Rc8+ {[%emt 0:00:00]} Rf8 {[%emt 0:00:
00]} 28. Rc3 {[%emt 0:00:00]} Rf7 {[%emt 0:00:00]} 29. Rc8+ {[%emt 0:00:00]}
Rf8 {[%emt 0:00:00]} 30. Rc3 {[%emt 0:00:00]} Rf7 {[%emt 0:00:00]} 1/2-1/2

[Event "44th Chess Olympiad Open 2022"]
[Site "Chennai"]
[Date "2022.08.02"]
[Round "5.24"]
[White "De La Riva Aguado, Oscar"]
[Black "Terry, Renato"]
[Result "1/2-1/2"]
[WhiteElo "2424"]
[BlackElo "2502"]
[Annotator "RC"]
[PlyCount "52"]
[EventDate "2022.??.??"]
[TimeControl "60"]

1. e4 {[%emt 0:00:04]} c6 {[%emt 0:00:04]} 2. d4 {[%emt 0:01:20]} d5 {[%emt 0:
00:00]} 3. e5 {[%emt 0:00:07]} c5 {[%emt 0:01:10]} 4. dxc5 {[%emt 0:00:08]} e6
{[%emt 0:00:05]} 5. a3 {[%emt 0:00:39]} Bxc5 {[%emt 0:17:57]} 6. Qg4 {[%emt 0:
00:00]} Ne7 {[%emt 0:22:52]} 7. Bd3 {[%emt 0:06:50]} Ng6 {[%emt 0:03:24]} 8.
Nf3 {[%emt 0:00:49]} Nc6 {[%emt 0:00:13]} 9. b4 {[%emt 0:06:41]} Be7 {[%emt 0:
00:00]} 10. Bb2 {[%emt 0:00:48]} O-O {[%emt 0:17:02]} 11. O-O {[%emt 0:07:12]}
f5 {[%emt 0:12:35]} 12. Qg3 {[%emt 0:01:05]} Rb8 {[%emt 0:00:53]} 13. Nbd2 {
[%emt 0:21:58]} b5 {[%emt 0:00:42]} 14. Nb3 {[%emt 0:00:25]} Bd7 {[%emt 0:00:
00]} 15. Rfe1 {[%emt 0:01:31]} a5 {[%emt 0:03:17]} 16. bxa5 {[%emt 0:10:53]}
Nxa5 {[%emt 0:00:05]} 17. Nxa5 {[%emt 0:00:11]} Qxa5 {[%emt 0:00:01]} 18. h4 {
[%emt 0:00:15]} Qd8 {[%emt 0:00:04]} 19. h5 {[%emt 0:00:24]} Nh4 {[%emt 0:00:
00]} 20. Nxh4 {[%emt 0:06:06]} Bxh4 {[%emt 0:00:03]} 21. Qf3 {[%emt 0:00:07]}
Be7 {[%emt 0:02:19]} 22. Qf4 {[%emt 0:06:59]} Bg5 {[%emt 0:00:24]} 23. Qf3 {
[%emt 0:00:30]} Be7 {[%emt 0:00:24]} 24. Qf4 {[%emt 0:00:30]} Bg5 {[%emt 0:00:
00]} 25. Qf3 {[%emt 0:00:30]} Be7 {[%emt 0:00:30]} 26. Qf4 {[%emt 0:00:30]} Bg5
{[%emt 0:00:24]} 1/2-1/2